[Event "Torneo Nuevo Centro. Jornada 11"]
[Site "Chess.com"]
[Date "2020.08.28"]
[Round "7"]
[White "Escalona Moncholi, Felix"]
[Black "Donate Moreno, Silvia"]
[Result "0-1"]
[WhiteElo "2098"]
[BlackElo "1879"]
[TimeControl "180+2"]
[EndTime "11:45:17 PDT"]
[Termination "Victoria de monetesSAL por abandono"]

1. e4 {[%clk 0:03:01.9]} 1... c5 {[%clk 0:03:00]} 2. Nf3 {[%clk 0:03:03]} 2...
d6 {[%clk 0:03:00.1]} 3. d4 {[%clk 0:03:03.1]} 3... cxd4 {[%clk 0:03:02]} 4.
Qxd4 {[%clk 0:03:04.3]} 4... Nc6 {[%clk 0:02:58.7]} 5. Bb5 {[%clk 0:03:04.9]}
5... Bg4 {[%clk 0:02:49.4]} 6. c4 {[%clk 0:02:49.1]} 6... Bxf3 {[%clk 0:02:44]}
7. gxf3 {[%clk 0:02:50.1]} 7... Nf6 {[%clk 0:02:34]} 8. Nc3 {[%clk 0:02:48.9]}
8... a6 {[%clk 0:02:26.8]} 9. Bxc6+ {[%clk 0:02:48.7]} 9... bxc6 {[%clk
0:02:28.7]} 10. Bg5 {[%clk 0:02:46.9]} 10... Nd7 {[%clk 0:02:23.5]} 11. f4
{[%clk 0:02:32.3]} 11... h6 {[%clk 0:02:17.1]} 12. Bh4 {[%clk 0:02:32.7]} 12...
e5 {[%clk 0:02:11.9]} 13. fxe5 {[%clk 0:02:20.3]} 13... Qxh4 {[%clk 0:02:11.3]}
14. exd6 {[%clk 0:02:19.8]} 14... Qh5 {[%clk 0:01:53.5]} 15. Rd1 {[%clk
0:02:10.9]} 15... Rb8 {[%clk 0:01:37.2]} 16. b3 {[%clk 0:02:09.8]} 16... Qc5
{[%clk 0:01:09.3]} 17. Qd2 {[%clk 0:02:04.2]} 17... g6 {[%clk 0:01:04]} 18. f4
{[%clk 0:01:54.7]} 18... Bg7 {[%clk 0:00:53.7]} 19. e5 {[%clk 0:01:51.2]} 19...
O-O {[%clk 0:00:49.1]} 20. Ne4 {[%clk 0:01:50.7]} 20... Qb6 {[%clk 0:00:29]} 21.
Kf1 {[%clk 0:01:34.1]} 21... Rfe8 {[%clk 0:00:28]} 22. Kg2 {[%clk 0:01:29.1]}
22... c5 {[%clk 0:00:25.6]} 23. Rhe1 {[%clk 0:01:24.6]} 23... Qc6 {[%clk
0:00:25.7]} 24. Kg3 {[%clk 0:01:19.4]} 24... Nf8 {[%clk 0:00:20.6]} 25. Nc3
{[%clk 0:01:16.7]} 25... Ne6 {[%clk 0:00:20.6]} 26. Nd5 {[%clk 0:01:17.8]} 26...
Nd4 {[%clk 0:00:21.4]} 27. Kf2 {[%clk 0:00:52]} 27... Qd7 {[%clk 0:00:21.3]} 28.
Re3 {[%clk 0:00:47.4]} 28... Qg4 {[%clk 0:00:21.4]} 29. Rg3 {[%clk 0:00:43.4]}
29... Qh4 {[%clk 0:00:22.1]} 30. Kg2 {[%clk 0:00:43.5]} 30... h5 {[%clk
0:00:21.6]} 31. Rf1 {[%clk 0:00:39.1]} 31... Qd8 {[%clk 0:00:21.9]} 32. Ne7+
{[%clk 0:00:33.1]} 32... Rxe7 {[%clk 0:00:22.4]} 33. dxe7 {[%clk 0:00:35]} 33...
Qxe7 {[%clk 0:00:24.3]} 34. Qe3 {[%clk 0:00:35.3]} 34... Nf5 {[%clk 0:00:23.7]}
35. Qe4 {[%clk 0:00:35.4]} 35... Nxg3 {[%clk 0:00:24.4]} 36. hxg3 {[%clk
0:00:37.3]} 36... Rd8 {[%clk 0:00:25.4]} 37. Rf2 {[%clk 0:00:36.7]} 37... Rd4
{[%clk 0:00:25.5]} 38. Qe3 {[%clk 0:00:37.8]} 38... Qb7+ {[%clk 0:00:24.8]} 39.
Kh2 {[%clk 0:00:38.1]} 39... Qe4 {[%clk 0:00:25.3]} 40. Qc1 {[%clk 0:00:35.8]}
40... Qd3 {[%clk 0:00:24.3]} 41. Qg1 {[%clk 0:00:35]} 41... Qd1 {[%clk
0:00:24.8]} 42. Qg2 {[%clk 0:00:35.8]} 42... Kh7 {[%clk 0:00:24]} 43. Re2 {[%clk
0:00:30.1]} 43... Qd3 {[%clk 0:00:23.7]} 44. Kh3 {[%clk 0:00:29.5]} 44... Bh6
{[%clk 0:00:23.4]} 45. Qf2 {[%clk 0:00:29.7]} 45... Qf5+ {[%clk 0:00:24.1]} 46.
Kh2 {[%clk 0:00:30.1]} 46... Qg4 {[%clk 0:00:24.8]} 47. Rd2 {[%clk 0:00:29.6]}
47... Qd7 {[%clk 0:00:21.4]} 48. Re2 {[%clk 0:00:30]} 48... h4 {[%clk
0:00:21.6]} 49. gxh4 {[%clk 0:00:27.1]} 49... Bxf4+ {[%clk 0:00:22.3]} 50. Kg1
{[%clk 0:00:23.1]} 50... Qg4+ {[%clk 0:00:22.8]} 51. Kf1 {[%clk 0:00:22.8]}
51... Rd1+ {[%clk 0:00:23.4]} 52. Re1 {[%clk 0:00:23.5]} 52... Rxe1+ {[%clk
0:00:22.5]} 53. Qxe1 {[%clk 0:00:25.4]} 53... Qf3+ {[%clk 0:00:23.2]} 54. Kg1
{[%clk 0:00:25.8]} 54... Be3+ {[%clk 0:00:22.4]} 55. Kh2 {[%clk 0:00:25.4]}
55... Qf2+ {[%clk 0:00:21.4]} 56. Qxf2 {[%clk 0:00:26.5]} 56... Bxf2 {[%clk
0:00:23.3]} 57. e6 {[%clk 0:00:28]} 57... fxe6 {[%clk 0:00:22.8]} 0

[Event "Torneo Nuevo Centro. Jornada 11"]
[Site "Chess.com"]
[Date "2020.08.28"]
[Round "7"]
[White "Yuste Valenzuela, Alejandro"]
[Black "Gil López, Alejandro"]
[Result "0-1"]
[WhiteElo "1882"]
[BlackElo "2202"]
[TimeControl "180+2"]
[EndTime "11:45:33 PDT"]
[Termination "Victoria de AglVal0313 por abandono"]

1. e4 {[%clk 0:03:01.9]} 1... c5 {[%clk 0:03:01]} 2. Nf3 {[%clk 0:03:02.8]} 2...
g6 {[%clk 0:03:02]} 3. d4 {[%clk 0:03:04]} 3... cxd4 {[%clk 0:03:02.5]} 4. Nxd4
{[%clk 0:03:05.9]} 4... Bg7 {[%clk 0:03:03.7]} 5. Nc3 {[%clk 0:03:06.8]} 5...
Nc6 {[%clk 0:03:04.9]} 6. Be3 {[%clk 0:03:07.7]} 6... Nf6 {[%clk 0:03:03.7]} 7.
Bc4 {[%clk 0:03:07.8]} 7... O-O {[%clk 0:03:03.7]} 8. Bb3 {[%clk 0:03:08.2]}
8... a5 {[%clk 0:03:02.7]} 9. f3 {[%clk 0:03:04.4]} 9... d6 {[%clk 0:02:50.3]}
10. Qd2 {[%clk 0:03:03.8]} 10... d5 {[%clk 0:02:43.7]} 11. exd5 {[%clk
0:03:03.8]} 11... a4 {[%clk 0:02:42.9]} 12. dxc6 {[%clk 0:02:48.1]} 12... axb3
{[%clk 0:02:42.4]} 13. Nxb3 {[%clk 0:02:48.7]} 13... bxc6 {[%clk 0:02:39.9]} 14.
Qxd8 {[%clk 0:02:47]} 14... Rxd8 {[%clk 0:02:41.8]} 15. O-O {[%clk 0:02:46.1]}
15... Bf5 {[%clk 0:02:40.2]} 16. Nd4 {[%clk 0:02:40.9]} 16... Nd5 {[%clk
0:02:32.8]} 17. Nxd5 {[%clk 0:02:36.5]} 17... cxd5 {[%clk 0:02:20.6]} 18. Nxf5
{[%clk 0:02:36.9]} 18... gxf5 {[%clk 0:02:22.5]} 19. c3 {[%clk 0:02:37.5]} 19...
Rab8 {[%clk 0:02:18.6]} 20. Rab1 {[%clk 0:02:37]} 20... Ra8 {[%clk 0:02:17.1]}
21. Ra1 {[%clk 0:02:34.1]} 21... Rdb8 {[%clk 0:02:18]} 22. Rfb1 {[%clk
0:02:35.1]} 22... e5 {[%clk 0:02:14.5]} 23. Kf2 {[%clk 0:02:33.2]} 23... d4
{[%clk 0:02:12.7]} 24. cxd4 {[%clk 0:02:33.9]} 24... exd4 {[%clk 0:02:14.6]} 25.
Bf4 {[%clk 0:02:35.3]} 25... Rb5 {[%clk 0:02:10.1]} 26. a4 {[%clk 0:02:32.8]}
26... Rb4 {[%clk 0:02:05.6]} 27. a5 {[%clk 0:02:24.1]} 27... d3 {[%clk
0:02:06.6]} 28. Bd2 {[%clk 0:02:22.1]} 28... Rb5 {[%clk 0:02:01.5]} 29. Ra2
{[%clk 0:02:07.4]} 29... Bd4+ {[%clk 0:01:57.1]} 30. Be3 {[%clk 0:02:07.6]}
30... Be5 {[%clk 0:01:48.2]} 31. f4 {[%clk 0:01:45]} 31... Bd6 {[%clk
0:01:47.7]} 32. g3 {[%clk 0:01:39.5]} 32... Rbxa5 {[%clk 0:01:39.1]} 33. Rxa5
{[%clk 0:01:41.4]} 33... Rxa5 {[%clk 0:01:40.4]} 34. Bd4 {[%clk 0:01:33.7]}
34... Kf8 {[%clk 0:01:36.9]} 35. Ke3 {[%clk 0:01:31.8]} 35... Ke7 {[%clk
0:01:36.7]} 36. Kxd3 {[%clk 0:01:30.8]} 36... Kd7 {[%clk 0:01:36.7]} 37. b4
{[%clk 0:01:27.8]} 37... Ra2 {[%clk 0:01:27.1]} 38. b5 {[%clk 0:01:20.8]} 38...
Rxh2 {[%clk 0:01:23.9]} 39. b6 {[%clk 0:01:21.3]} 39... Rg2 {[%clk 0:01:17.7]}
40. b7 {[%clk 0:01:20.4]} 40... Rxg3+ {[%clk 0:01:14.1]} 41. Kc4 {[%clk
0:01:19]} 41... Bxf4 {[%clk 0:01:15.4]} 42. b8=Q {[%clk 0:01:07]} 42... Bxb8
{[%clk 0:01:16.7]} 43. Rxb8 {[%clk 0:01:08.3]} 43... h6 {[%clk 0:01:09.1]} 44.
Rh8 {[%clk 0:01:07.8]} 44... Rh3 {[%clk 0:01:08.5]} 45. Kd5 {[%clk 0:01:07]}
45... Ke7 {[%clk 0:01:05.6]} 46. Ke5 {[%clk 0:01:03.7]} 46... Rh4 {[%clk
0:01:04.3]} 47. Bc5+ {[%clk 0:01:02.6]} 47... Kd7 {[%clk 0:01:04.6]} 48. Rh7
{[%clk 0:00:57.4]} 48... Ke8 {[%clk 0:01:02.7]} 49. Be3 {[%clk 0:00:50.9]} 49...
Re4+ {[%clk 0:01:02.3]} 50. Kxf5 {[%clk 0:00:51.7]} 50... Rxe3 {[%clk
0:01:03.1]} 51. Rxh6 {[%clk 0:00:51.3]} 51... Rf3+ {[%clk 0:01:01.2]} 52. Ke4
{[%clk 0:00:45.4]} 52... Ra3 {[%clk 0:01:01.3]} 53. Kf5 {[%clk 0:00:43.9]} 53...
Ke7 {[%clk 0:01:01.4]} 54. Rh7 {[%clk 0:00:43.4]} 54... Ra5+ {[%clk 0:01:01.8]}
55. Kf4 {[%clk 0:00:44.4]} 55... Ke6 {[%clk 0:01:03]} 56. Rh6+ {[%clk 0:00:45]}
56... f6 {[%clk 0:01:04.2]} 57. Kf3 {[%clk 0:00:45]} 57... Ra4 {[%clk
0:01:04.8]} 58. Rh8 {[%clk 0:00:45.9]} 58... Kf5 {[%clk 0:00:58.9]} 59. Rb8
{[%clk 0:00:43.9]} 59... Ra3+ {[%clk 0:00:58.7]} 60. Kf2 {[%clk 0:00:44.5]}
60... Kf4 {[%clk 0:00:58.9]} 61. Rb4+ {[%clk 0:00:45]} 61... Kg5 {[%clk
0:01:00.1]} 62. Rb5+ {[%clk 0:00:45.5]} 62... f5 {[%clk 0:01:01.5]} 63. Rb4
{[%clk 0:00:46.2]} 63... Kf6 {[%clk 0:00:56]} 64. Rb6+ {[%clk 0:00:45.2]} 64...
Ke5 {[%clk 0:00:57]} 65. Rb5+ {[%clk 0:00:46.3]} 65... Kf4 {[%clk 0:00:57.7]}
66. Rb4+ {[%clk 0:00:47.1]} 66... Kg5 {[%clk 0:00:58.9]} 67. Rc4 {[%clk
0:00:48]} 67... f4 {[%clk 0:00:58]} 68. Rb4 {[%clk 0:00:47.7]} 68... Kg4 {[%clk
0:00:58.2]} 69. Rc4 {[%clk 0:00:47.7]} 69... Ra2+ {[%clk 0:00:58.9]} 70. Kf1
{[%clk 0:00:48.7]} 70... Kg3 {[%clk 0:00:59.5]} 71. Rc3+ {[%clk 0:00:47.2]}
71... f3 {[%clk 0:01:00.4]} 72. Rc1 {[%clk 0:00:48.3]} 72... Rh2 {[%clk
0:01:00.1]} 73. Kg1 {[%clk 0:00:43]} 73... f2+ {[%clk 0:01:00.2]} 0

[Event "Torneo Nuevo Centro. Jornada 11"]
[Site "Chess.com"]
[Date "2020.08.28"]
[Round "7"]
[White "Gutierrez Lacambra, Jose Antonio"]
[Black "Ursariu, Nikolas Victor"]
[Result "1-0"]
[WhiteElo "1370"]
[BlackElo "1151"]
[TimeControl "180+2"]
[EndTime "11:46:41 PDT"]
[Termination "Victoria de sygm2012 por jaque mate"]

1. d4 {[%clk 0:03:01.9]} 1... d5 {[%clk 0:02:58.7]} 2. Nf3 {[%clk 0:02:59]} 2...
Nc6 {[%clk 0:02:59.6]} 3. Bf4 {[%clk 0:02:59.1]} 3... Bf5 {[%clk 0:02:58.8]} 4.
c3 {[%clk 0:02:54.5]} 4... Nf6 {[%clk 0:02:57.6]} 5. h3 {[%clk 0:02:52.8]} 5...
e6 {[%clk 0:02:53.2]} 6. e3 {[%clk 0:02:47.4]} 6... Bd6 {[%clk 0:02:46.8]} 7.
Ne5 {[%clk 0:02:47.5]} 7... Bxe5 {[%clk 0:02:45.3]} 8. dxe5 {[%clk 0:02:46]}
8... Nd7 {[%clk 0:02:44.6]} 9. Bb5 {[%clk 0:02:22.4]} 9... a6 {[%clk 0:02:33.4]}
10. Bxc6 {[%clk 0:02:22.7]} 10... bxc6 {[%clk 0:02:32.8]} 11. Bh2 {[%clk
0:02:20.5]} 11... O-O {[%clk 0:02:31.7]} 12. f4 {[%clk 0:02:20.9]} 12... Rb8
{[%clk 0:02:29.3]} 13. b3 {[%clk 0:02:18.8]} 13... Qh4+ {[%clk 0:02:17.5]} 14.
Kd2 {[%clk 0:01:59.1]} 14... Qf2+ {[%clk 0:02:06.4]} 15. Qe2 {[%clk 0:01:59.2]}
15... Qxe2+ {[%clk 0:02:00.6]} 16. Kxe2 {[%clk 0:01:59.1]} 16... f6 {[%clk
0:01:56.5]} 17. g4 {[%clk 0:01:51.1]} 17... Bg6 {[%clk 0:01:54.8]} 18. exf6
{[%clk 0:01:45.2]} 18... Rxf6 {[%clk 0:01:53.1]} 19. Nd2 {[%clk 0:01:39.6]}
19... Rbf8 {[%clk 0:01:51]} 20. Rhf1 {[%clk 0:01:33.3]} 20... Nc5 {[%clk
0:01:47.7]} 21. Nf3 {[%clk 0:01:17]} 21... Bd3+ {[%clk 0:01:39.3]} 22. Kd1
{[%clk 0:01:05]} 22... Bxf1 {[%clk 0:01:41.2]} 23. Ne5 {[%clk 0:01:04.5]} 23...
Bxh3 {[%clk 0:01:35.9]} 24. b4 {[%clk 0:00:59.5]} 24... Bxg4+ {[%clk 0:01:35.3]}
25. Nxg4 {[%clk 0:00:59.1]} 25... Rg6 {[%clk 0:01:33.4]} 26. Ne5 {[%clk
0:00:55.5]} 26... Rg2 {[%clk 0:01:32.6]} 27. Nf3 {[%clk 0:00:31.4]} 27... Rf2
{[%clk 0:01:29.7]} 28. bxc5 {[%clk 0:00:26]} 28... Rf1+ {[%clk 0:01:23.1]} 29.
Ne1 {[%clk 0:00:25.3]} 29... Rf2 {[%clk 0:01:17.6]} 30. Bg1 {[%clk 0:00:22.8]}
30... Rf1 {[%clk 0:01:16.8]} 31. Bh2 {[%clk 0:00:18.3]} 31... Rf6 {[%clk
0:01:15.7]} 32. Bg3 {[%clk 0:00:17.4]} 32... Rg6 {[%clk 0:01:14.7]} 33. Ke2
{[%clk 0:00:18.1]} 33... Rg1 {[%clk 0:01:11.9]} 34. Bf2 {[%clk 0:00:16.8]} 34...
Rh1 {[%clk 0:01:08.9]} 35. Rd1 {[%clk 0:00:13.4]} 35... Rh2 {[%clk 0:01:06.8]}
36. Nd3 {[%clk 0:00:13.3]} 36... Kf7 {[%clk 0:01:01.6]} 37. Ne5+ {[%clk
0:00:13.2]} 37... Kf6 {[%clk 0:01:00.7]} 38. Nxg6 {[%clk 0:00:13.8]} 38... Kxg6
{[%clk 0:01:01.8]} 39. Rg1+ {[%clk 0:00:12.7]} 39... Kf6 {[%clk 0:01:02.1]} 40.
Kf1 {[%clk 0:00:10.4]} 40... h5 {[%clk 0:01:00.5]} 41. Rg2 {[%clk 0:00:11.4]}
41... Rxg2 {[%clk 0:00:57.4]} 42. Kxg2 {[%clk 0:00:10.7]} 42... Kf5 {[%clk
0:00:55.9]} 43. Kf3 {[%clk 0:00:09.1]} 43... g5 {[%clk 0:00:53.6]} 44. fxg5
{[%clk 0:00:08.8]} 44... Kxg5 {[%clk 0:00:55.5]} 45. Kg3 {[%clk 0:00:06.8]}
45... e5 {[%clk 0:00:51.5]} 46. Kh3 {[%clk 0:00:06.4]} 46... a5 {[%clk
0:00:44.8]} 47. Bg3 {[%clk 0:00:06.6]} 47... e4 {[%clk 0:00:42.1]} 48. Bxc7
{[%clk 0:00:06.6]} 48... a4 {[%clk 0:00:39.2]} 49. Be5 {[%clk 0:00:06]} 49... h4
{[%clk 0:00:38.4]} 50. Bd6 {[%clk 0:00:05.8]} 50... Kh5 {[%clk 0:00:37.8]} 51.
Be7 {[%clk 0:00:06]} 51... a3 {[%clk 0:00:35.5]} 52. Bxh4 {[%clk 0:00:06.1]}
52... Kg6 {[%clk 0:00:34.9]} 53. Bd8 {[%clk 0:00:05.2]} 53... Kf5 {[%clk
0:00:35.2]} 54. Kg3 {[%clk 0:00:04.6]} 54... Ke6 {[%clk 0:00:34.7]} 55. Ba5
{[%clk 0:00:04.2]} 55... Kd7 {[%clk 0:00:34.5]} 56. Kf4 {[%clk 0:00:03.7]} 56...
Kc8 {[%clk 0:00:33.7]} 57. Ke5 {[%clk 0:00:04.5]} 57... Kb7 {[%clk 0:00:35.6]}
58. Kd6 {[%clk 0:00:04.7]} 58... Ka6 {[%clk 0:00:36]} 59. Bb4 {[%clk 0:00:05.7]}
59... Kb5 {[%clk 0:00:36.5]} 60. Bxa3 {[%clk 0:00:06.1]} 60... Ka4 {[%clk
0:00:36.3]} 61. Bb4 {[%clk 0:00:06.5]} 61... Kb5 {[%clk 0:00:36.9]} 62. a3
{[%clk 0:00:07.1]} 62... Kc4 {[%clk 0:00:35.6]} 63. Kxc6 {[%clk 0:00:07.8]}
63... Kd3 {[%clk 0:00:37.5]} 64. Kxd5 {[%clk 0:00:07]} 64... Kxe3 {[%clk
0:00:39.4]} 65. c6 {[%clk 0:00:07.8]} 65... Kd3 {[%clk 0:00:41.3]} 66. c7 {[%clk
0:00:07.8]} 66... e3 {[%clk 0:00:43.2]} 67. c4 {[%clk 0:00:07.8]} 67... e2
{[%clk 0:00:45.1]} 68. c8=Q {[%clk 0:00:08]} 68... e1=Q {[%clk 0:00:47]} 69.
Bxe1 {[%clk 0:00:08.3]} 69... Ke2 {[%clk 0:00:46.2]} 70. c5 {[%clk 0:00:08.7]}
70... Kxe1 {[%clk 0:00:48.1]} 71. c6 {[%clk 0:00:09.6]} 71... Kd2 {[%clk
0:00:48.8]} 72. a4 {[%clk 0:00:10.9]} 72... Kc3 {[%clk 0:00:50.7]} 73. a5 {[%clk
0:00:12.2]} 73... Kb4 {[%clk 0:00:52.6]} 74. a6 {[%clk 0:00:13.4]} 74... Ka5
{[%clk 0:00:54.5]} 75. c7 {[%clk 0:00:14.1]} 75... Kb4 {[%clk 0:00:56.4]} 76.
Qd7 {[%clk 0:00:15.2]} 76... Kc3 {[%clk 0:00:58.3]} 77. Qb5 {[%clk 0:00:14.9]}
77... Kd2 {[%clk 0:01:00.2]} 78. Qc4 {[%clk 0:00:14.2]} 78... Kd1 {[%clk
0:01:02.1]} 79. Qc3 {[%clk 0:00:14.9]} 79... Ke2 {[%clk 0:00:58.1]} 80. Ke4
{[%clk 0:00:14]} 80... Kf2 {[%clk 0:00:57.6]} 81. Qd3 {[%clk 0:00:14.9]} 81...
Kg2 {[%clk 0:00:59.5]} 82. Kf4 {[%clk 0:00:15.8]} 82... Kh2 {[%clk 0:01:01.4]}
83. Kg4 {[%clk 0:00:16.5]} 83... Kg1 {[%clk 0:01:03.3]} 84. Qd2 {[%clk
0:00:16.7]} 84... Kf1 {[%clk 0:01:05.2]} 85. Kf3 {[%clk 0:00:17.4]} 85... Kg1
{[%clk 0:01:07.1]} 86. Qg2# {[%clk 0:00:16.4]} 1

[Event "Torneo Nuevo Centro. Jornada 11"]
[Site "Chess.com"]
[Date "2020.08.28"]
[Round "7"]
[White "Bercaru, Vlad Ionut"]
[Black "Tormos Beltran, Maite"]
[Result "0-1"]
[WhiteElo "1719"]
[BlackElo "1486"]
[TimeControl "180+2"]
[EndTime "11:47:08 PDT"]
[Termination "Victoria de TORBEL79 por jaque mate"]

1. c4 {[%clk 0:03:01.9]} 1... e5 {[%clk 0:02:58.3]} 2. Nc3 {[%clk 0:03:02.3]}
2... Nf6 {[%clk 0:02:58.8]} 3. Nf3 {[%clk 0:03:03]} 3... g6 {[%clk 0:02:59.2]}
4. Nxe5 {[%clk 0:03:02.5]} 4... Qe7 {[%clk 0:02:59.4]} 5. Nf3 {[%clk 0:03:02.3]}
5... Bg7 {[%clk 0:03:00.1]} 6. e3 {[%clk 0:03:02.9]} 6... O-O {[%clk 0:03:00.7]}
7. Be2 {[%clk 0:03:03.2]} 7... Nc6 {[%clk 0:02:55]} 8. d4 {[%clk 0:03:03.9]}
8... d6 {[%clk 0:02:51.8]} 9. a3 {[%clk 0:03:03]} 9... Bf5 {[%clk 0:02:50.9]}
10. Bd3 {[%clk 0:03:02.3]} 10... Ne4 {[%clk 0:02:47.4]} 11. Nxe4 {[%clk
0:03:01.4]} 11... Bxe4 {[%clk 0:02:45.8]} 12. Bxe4 {[%clk 0:03:00.9]} 12... Qxe4
{[%clk 0:02:45.9]} 13. O-O {[%clk 0:02:56.9]} 13... Rfe8 {[%clk 0:02:44.2]} 14.
Bd2 {[%clk 0:02:55.8]} 14... Ne7 {[%clk 0:02:32.4]} 15. Qb1 {[%clk 0:02:55]}
15... Qe6 {[%clk 0:02:28.4]} 16. Qc2 {[%clk 0:02:50.1]} 16... Rac8 {[%clk
0:02:24.6]} 17. b3 {[%clk 0:02:46.9]} 17... d5 {[%clk 0:02:20.9]} 18. cxd5
{[%clk 0:02:41]} 18... Nxd5 {[%clk 0:02:19.7]} 19. Rac1 {[%clk 0:02:35.3]} 19...
Qd6 {[%clk 0:02:07.8]} 20. Qc5 {[%clk 0:02:27.2]} 20... Qxc5 {[%clk 0:01:59.1]}
21. dxc5 {[%clk 0:02:26.7]} 21... Bb2 {[%clk 0:01:52.7]} 22. Rcd1 {[%clk
0:02:09.2]} 22... Bxa3 {[%clk 0:01:50]} 23. Bc1 {[%clk 0:02:06.4]} 23... Bxc1
{[%clk 0:01:33]} 24. Rxc1 {[%clk 0:02:05]} 24... Nb4 {[%clk 0:01:29.1]} 25. Rc4
{[%clk 0:02:02]} 25... Nc6 {[%clk 0:01:25.4]} 26. Nd4 {[%clk 0:01:57.4]} 26...
Ne5 {[%clk 0:01:18.5]} 27. Rc3 {[%clk 0:01:56.1]} 27... b6 {[%clk 0:01:14.8]}
28. Ra1 {[%clk 0:01:51.7]} 28... a5 {[%clk 0:01:05.9]} 29. Nf3 {[%clk
0:01:45.5]} 29... Nxf3+ {[%clk 0:01:02.2]} 30. gxf3 {[%clk 0:01:45.5]} 30... h5
{[%clk 0:00:56.2]} 31. Rac1 {[%clk 0:01:43.9]} 31... Rb8 {[%clk 0:00:50.8]} 32.
cxb6 {[%clk 0:01:37.2]} 32... cxb6 {[%clk 0:00:51.3]} 33. Rc6 {[%clk 0:01:33.9]}
33... b5 {[%clk 0:00:50.8]} 34. R6c5 {[%clk 0:01:31.9]} 34... a4 {[%clk
0:00:45.6]} 35. bxa4 {[%clk 0:01:32]} 35... bxa4 {[%clk 0:00:45.1]} 36. Ra5
{[%clk 0:01:32.7]} 36... Ra8 {[%clk 0:00:45.1]} 37. Rxa8 {[%clk 0:01:20.2]}
37... Rxa8 {[%clk 0:00:45.2]} 38. Rc2 {[%clk 0:01:20.2]} 38... a3 {[%clk
0:00:45.8]} 39. Ra2 {[%clk 0:01:20.9]} 39... Kg7 {[%clk 0:00:45.4]} 40. Kf1
{[%clk 0:01:22.3]} 40... Kf6 {[%clk 0:00:46.4]} 41. Ke1 {[%clk 0:01:23.6]} 41...
Kf5 {[%clk 0:00:45.5]} 42. Kd2 {[%clk 0:01:22.8]} 42... Kg5 {[%clk 0:00:46.1]}
43. f4+ {[%clk 0:01:08.3]} 43... Kg4 {[%clk 0:00:44.9]} 44. Kc3 {[%clk
0:01:01.4]} 44... Kf3 {[%clk 0:00:42.2]} 45. Kd4 {[%clk 0:00:59.8]} 45... Kg2
{[%clk 0:00:41.8]} 46. Ke5 {[%clk 0:00:56.9]} 46... h4 {[%clk 0:00:40.3]} 47.
Kf6 {[%clk 0:00:54.9]} 47... Ra7 {[%clk 0:00:40]} 48. Kg5 {[%clk 0:00:46.7]}
48... h3 {[%clk 0:00:37.4]} 49. Kg4 {[%clk 0:00:45.3]} 49... Kxh2 {[%clk
0:00:29.5]} 50. f3+ {[%clk 0:00:45.1]} 50... Kg1 {[%clk 0:00:28.5]} 51. Kxh3
{[%clk 0:00:46]} 51... Kf1 {[%clk 0:00:27.8]} 52. Kg4 {[%clk 0:00:42.8]} 52...
Ke1 {[%clk 0:00:28.1]} 53. f5 {[%clk 0:00:38]} 53... gxf5+ {[%clk 0:00:24.3]}
54. Kxf5 {[%clk 0:00:39.1]} 54... Kd1 {[%clk 0:00:26]} 55. f4 {[%clk 0:00:39.5]}
55... Kc1 {[%clk 0:00:26.7]} 56. e4 {[%clk 0:00:40.2]} 56... Kb1 {[%clk
0:00:27.6]} 57. Rh2 {[%clk 0:00:40.5]} 57... a2 {[%clk 0:00:27.2]} 58. Rh1+
{[%clk 0:00:39.5]} 58... Kb2 {[%clk 0:00:27.6]} 59. Rh2+ {[%clk 0:00:29.6]}
59... Kc3 {[%clk 0:00:24.2]} 60. Rh1 {[%clk 0:00:15.8]} 60... a1=Q {[%clk
0:00:22.2]} 61. Rxa1 {[%clk 0:00:17.1]} 61... Rxa1 {[%clk 0:00:22.6]} 62. Kf6
{[%clk 0:00:18.5]} 62... Kd4 {[%clk 0:00:21.2]} 63. e5 {[%clk 0:00:16.6]} 63...
Rf1 {[%clk 0:00:18.5]} 64. f5 {[%clk 0:00:15.7]} 64... Ke4 {[%clk 0:00:16.6]}
65. Kxf7 {[%clk 0:00:13.2]} 65... Rxf5+ {[%clk 0:00:16]} 66. Kg6 {[%clk
0:00:13.6]} 66... Rxe5 {[%clk 0:00:16.8]} 67. Kf6 {[%clk 0:00:13.3]} 67... Rb5
{[%clk 0:00:16.7]} 68. Ke6 {[%clk 0:00:13.6]} 68... Rb6+ {[%clk 0:00:17.7]} 69.
Kd7 {[%clk 0:00:15]} 69... Kd5 {[%clk 0:00:18.5]} 70. Kc7 {[%clk 0:00:16.4]}
70... Rh6 {[%clk 0:00:19.5]} 71. Kb7 {[%clk 0:00:16.3]} 71... Kc5 {[%clk
0:00:20.2]} 72. Kc7 {[%clk 0:00:15.7]} 72... Rh7+ {[%clk 0:00:20.2]} 73. Kd8
{[%clk 0:00:17.2]} 73... Kd6 {[%clk 0:00:20.8]} 74. Ke8 {[%clk 0:00:18.5]} 74...
Ke6 {[%clk 0:00:20.3]} 75. Kf8 {[%clk 0:00:19.6]} 75... Rd7 {[%clk 0:00:20.4]}
76. Kg8 {[%clk 0:00:20.8]} 76... Kf6 {[%clk 0:00:20.8]} 77. Kh8 {[%clk
0:00:21.9]} 77... Kg6 {[%clk 0:00:21.7]} 78. Kg8 {[%clk 0:00:20.9]} 78... Rd8#
{[%clk 0:00:23.6]} 0

[Event "Torneo Nuevo Centro. Jornada 11"]
[Site "Chess.com"]
[Date "2020.08.28"]
[Round "8"]
[White "Conon, Catalin"]
[Black "Perez Garcia, Jose Miguel"]
[Result "0-1"]
[WhiteElo "1913"]
[BlackElo "2040"]
[TimeControl "180+2"]
[EndTime "11:50:14 PDT"]
[Termination "Victoria de PEREZOV69 por abandono"]

1. e4 {[%clk 0:03:01.9]} 1... c5 {[%clk 0:02:59.2]} 2. Nc3 {[%clk 0:03:02.7]}
2... e6 {[%clk 0:03:00.4]} 3. g3 {[%clk 0:03:03.6]} 3... a6 {[%clk 0:03:01.7]}
4. Bg2 {[%clk 0:03:04.4]} 4... b5 {[%clk 0:03:02.9]} 5. Nh3 {[%clk 0:03:05.9]}
5... Bb7 {[%clk 0:03:04.2]} 6. O-O {[%clk 0:03:06.9]} 6... Qc7 {[%clk
0:03:05.5]} 7. d3 {[%clk 0:03:07.4]} 7... d6 {[%clk 0:03:06.3]} 8. f4 {[%clk
0:03:08.2]} 8... Be7 {[%clk 0:03:07.6]} 9. Be3 {[%clk 0:03:03.5]} 9... Nf6
{[%clk 0:03:08.2]} 10. Bf2 {[%clk 0:03:03.7]} 10... Nc6 {[%clk 0:03:08.5]} 11.
Ne2 {[%clk 0:03:01.7]} 11... O-O {[%clk 0:03:07.2]} 12. c3 {[%clk 0:03:02.6]}
12... Rfd8 {[%clk 0:03:07.9]} 13. Ng5 {[%clk 0:03:01.8]} 13... h6 {[%clk
0:03:08.1]} 14. Nf3 {[%clk 0:03:02.6]} 14... Ng4 {[%clk 0:03:09.6]} 15. h3
{[%clk 0:02:42.1]} 15... Nxf2 {[%clk 0:03:10]} 16. Rxf2 {[%clk 0:02:44]} 16...
Rac8 {[%clk 0:03:10.5]} 17. Rc1 {[%clk 0:02:43.5]} 17... Bf6 {[%clk 0:03:09.3]}
18. d4 {[%clk 0:02:35.7]} 18... Qb6 {[%clk 0:02:58.5]} 19. e5 {[%clk 0:02:35.3]}
19... dxe5 {[%clk 0:02:59]} 20. fxe5 {[%clk 0:02:37.2]} 20... Nxe5 {[%clk
0:02:56.9]} 21. Nxe5 {[%clk 0:02:37.2]} 21... Bxe5 {[%clk 0:02:57.6]} 22. Qf1
{[%clk 0:02:29.3]} 22... Bxg2 {[%clk 0:02:56.2]} 23. Kxg2 {[%clk 0:02:28.6]}
23... cxd4 {[%clk 0:02:52.5]} 24. cxd4 {[%clk 0:02:23.8]} 24... Rxc1 {[%clk
0:02:52.8]} 25. Qxc1 {[%clk 0:02:24]} 25... Bxd4 {[%clk 0:02:50]} 26. Qf4 {[%clk
0:02:21.6]} 26... Bxf2 {[%clk 0:02:49.2]} 0